Workbook

Sheet H1(Synthèse de scénarios)
B2: Synthèse de scénarios
D3: Valeurs actuelles : | E3: Tx55% | F3: TX70% | G3: Tx95%
E4: Créé par BTS le 16/01/2013 | F4: Créé par BTS le 16/01/2013 | G4: Créé par BTS le 16/01/2013
B5: Cellules variables :
C6: TxMoyenOccup | D6: 0.8 | E6: 0.55 | F6: 0.7 | G6: 0.95
B7: Cellules résultantes :
C8: MCV | D8: 1504384 | E8: 1034264 | F8: 1316336 | G8: 1786456
C9: TxMCV | D9: 0.7 | E9: 0.7 | F9: 0.7 | G9: 0.7
C10: RtExpl | D10: 504384 | E10: 34264 | F10: 316336 | G10: 786456
C11: SR€ | D11: 1428571.429 | E11: 1428571.429 | F11: 1428571.429 | G11: 1428571.429
C12: DateSeuilRentabilité | D12: 1900-08-29T14:58:52.919 | E12: 1900-12-17T21:47:27.883 | F12: 1900-10-03T06:50:09.051 | G12: 1900-07-22T07:33:47.721
B13: La colonne Valeurs actuelles affiche les valeurs des cellules variables
B14: au moment de la création du rapport de synthèse. Les cellules variables
B15: de chaque scénario se situent dans les colonnes grisées.

Sheet SEUIL RENTABILITE
B4: La compagnie hôtelière II
A7: Valeur à saisir
A8: Nombre total de chambres | B8: 80
A9: Taux moyen d'occupation | B9: 0.8 | E9: Saisie
A10: Prix moyen de la chambre | B10: 92
A11: Nombre de jours ouvrables | B11: 365 | E11: Calcul
A12: Charges Variables | B12: 0.3
A14: Tableau de résultat par variabilité
D16: Marges | E16: %
A17: Chiffre d'affaires | C17: =NBchambres*TxMoyenOccup*PxMoyenChambre*NbrJoursOuvrables -> 2149120
A19: Charges variables | C19: =TauxCV*CA -> 644736
A23: Marge sur coût variable | D23: =CA-CV -> 1504384 | E23: =MCV/CA -> 0.7
A25: Charges fixes
B26: Charges fixes décaissables | C26: 800000
B27: Dotations aux amortissements | C27: 200000
B31: Total | C31: =SUM(C26:C30) -> 1000000
A32: résutat d'exploitation | D32: =MCV-CF -> 504384 | E32: =RtExpl/CA -> 0.2346932698
A35: Seuil de rentabilité
A36: En €uros | B36: =(CA*CF)/MCV -> 1428571.429
A37: En Jours | B37: =(SR€/CA)*365 -> 242.6242236
A38: Soit le | B38: =B37 -> 1900-08-29T14:58:52.919
A40: Marge de Sécurité
A41: Chiffre d'affaires | B41: =CA -> 2149120
A42: Seuil de Rentabilité | B42: =SR€ -> 1428571.429
A43: Marge de Sécurité | B43: =CA-SR€ -> 720548.5714
A44: En Jours | B44: =ROUND(365-B38,0) -> 122
A45: En Mois | B45: =B44/30 -> 4.066666667
A47: Indice de Sécurité
A48: Indice de sécurité | B48: =MS/CA -> 0.3352760997

Sheet H1(POINT MORT)
A1: Exercice | B1: Mois | C1: 1er J/M | D1: Dernier J/M | E1: Nbr J/M | F1: Cumul | G1: Tx Occup | H1: CA en € | I1: CV en € | J1: MCV en € | K1: CF En € | L1: Résultat
A2: 2017 | B2: 1 | C2: =DATE(ExEnCours,B2,1) -> 2017-01-01 | D2: =EOMONTH(C2,0) -> 2017-01-31 | E2: =D2-C2+1 -> 31 | F2: =SUM($E$2:E2) -> 31 | G2: =TxMoyenOccup -> 0.8 | H2: =NBchambres*TxMoyenOccup*PxMoyenChambre*F2 -> 182528 | I2: =H2*TauxCV -> 54758.4 | J2: =H2-I2 -> 127769.6 | K2: =CF -> 1000000 | L2: =J2-K2 -> -872230.4
B3: 2 | C3: 2017-02-01 | D3: =EOMONTH(C3,0) -> 2017-02-28 | E3: =D3-C3+1 -> 28 | F3: =SUM($E$2:E3) -> 59 | G3: 0.8 | H3: 347392 | I3: 104217.6 | J3: =H3-I3 -> 243174.4 | K3: 1000000 | L3: =J3-K3 -> -756825.6
B4: 3 | C4: 2017-03-01 | D4: 2017-03-31 | E4: 31 | F4: =SUM($E$2:E4) -> 90 | G4: 0.8 | H4: =NBchambres*TxMoyenOccup*PxMoyenChambre*F4 -> 529920 | I4: 158976 | J4: 370944 | K4: 1000000 | L4: -629056
B5: 4 | C5: 2017-04-01 | D5: 2017-04-30 | E5: 30 | F5: =SUM($E$2:E5) -> 120 | G5: 0.8 | H5: 706560 | I5: 211968 | J5: 494592 | K5: 1000000 | L5: -505408
B6: 5 | C6: 2017-05-01 | D6: 2017-05-31 | E6: 31 | F6: =SUM($E$2:E6) -> 151 | G6: 0.8 | H6: 889088 | I6: 266726.4 | J6: 622361.6 | K6: 1000000 | L6: -377638.4
B7: 6 | C7: 2017-06-01 | D7: 2017-06-30 | E7: 30 | F7: =SUM($E$2:E7) -> 181 | G7: 0.8 | H7: 1065728 | I7: =H7*TauxCV -> 319718.4 | J7: 746009.6 | K7: 1000000 | L7: -253990.4
B8: 7 | C8: 2017-07-01 | D8: 2017-07-31 | E8: 31 | F8: =SUM($E$2:E8) -> 212 | G8: 0.8 | H8: 1248256 | I8: 374476.8 | J8: 873779.2 | K8: 1000000 | L8: -126220.8
B9: 8 | C9: 2017-08-01 | D9: 2017-08-31 | E9: 31 | F9: =SUM($E$2:E9) -> 243 | G9: 0.8 | H9: 1430784 | I9: 429235.2 | J9: 1001548.8 | K9: 1000000 | L9: 1548.8
B10: 9 | C10: 2017-09-01 | D10: 2017-09-30 | E10: 30 | F10: =SUM($E$2:E10) -> 273 | G10: 0.8 | H10: 1607424 | I10: 482227.2 | J10: 1125196.8 | K10: 1000000 | L10: 125196.8
B11: 10 | C11: 2017-10-01 | D11: 2017-10-31 | E11: 31 | F11: =SUM($E$2:E11) -> 304 | G11: 0.8 | H11: 1789952 | I11: 536985.6 | J11: 1252966.4 | K11: 1000000 | L11: 252966.4
B12: 11 | C12: 2017-11-01 | D12: 2017-11-30 | E12: 30 | F12: =SUM($E$2:E12) -> 334 | G12: 0.8 | H12: 1966592 | I12: 589977.6 | J12: 1376614.4 | K12: 1000000 | L12: 376614.4
B13: 12 | C13: 2017-12-01 | D13: 2017-12-31 | E13: 31 | F13: =SUM($E$2:E13) -> 365 | G13: 0.8 | H13: 2149120 | I13: 644736 | J13: 1504384 | K13: 1000000 | L13: 504384

Sheet H2(SAISONNALITE)
B5: Si tu veux voir une vidéo de cette situation professionnelle complète sur you tube clique
I6: ICI
B11: La partie découverte s'arrête ici. Si tu veux allez plus loin tu peux télécharger 3 exemples de situations professionnelles E5 (avec les 3 fiches correspondantes + des fiches résumées du cours utilisé pour chaque situation) + une vidéo présentation orale en situation d'examen sur chaque situations professionnelles + 2 tutos vidéos sur Excel
B22: CLIQUER ICI POUR OBTENIR LE DOSSIER E5

Sheet H2(POINT MORT)
A2: =SUM(#REF!)+((#REF!-SUM(#REF!))/(SUM(#REF!)-SUM(#REF!)))*#REF! -> 
A3: =SUM(#REF!)+((#REF!-SUM(#REF!))/(SUM(#REF!)-SUM(#REF!)))*#REF! -> 
A4: =SUM(#REF!)+((#REF!-SUM(#REF!))/(SUM(#REF!)-SUM(#REF!)))*#REF! -> 
A5: =SUM(#REF!)+((#REF!-SUM(#REF!))/(SUM(#REF!)-SUM(#REF!)))*#REF! -> 
A6: =SUM(#REF!)+((#REF!-SUM(#REF!))/(SUM(#REF!)-SUM(#REF!)))*#REF! -> 
A7: =SUM(#REF!)+((#REF!-SUM(#REF!))/(SUM(#REF!)-SUM(#REF!)))*#REF! -> 
A8: =SUM(#REF!)+((#REF!-SUM(#REF!))/(SUM(#REF!)-SUM(#REF!)))*#REF! -> 
A9: =SUM(#REF!)+((#REF!-SUM(#REF!))/(SUM(#REF!)-SUM(#REF!)))*#REF! -> 
A10: =SUM(#REF!)+((#REF!-SUM(#REF!))/(SUM(#REF!)-SUM(#REF!)))*#REF! -> 
A11: =SUM(#REF!)+((#REF!-SUM(#REF!))/(SUM(#REF!)-SUM(#REF!)))*#REF! -> 
A12: =SUM(#REF!)+((#REF!-SUM(#REF!))/(SUM(#REF!)-SUM(#REF!)))*#REF! -> 

Sheet Evolution CA

Sheet AdressesActionnaires
